[Event "Late-Titled-Tuesday-Blitz-February-06-2024"]
[Site "Chess.com"]
[Date "2024.02.06"]
[Round "1"]
[White "DonMicheleCorleone"]
[Black "Harsha_Bharathakoti"]
[Result "0-1"]
[WhiteElo "2484"]
[BlackElo "2908"]
[TimeControl "180+1"]
[EndTime "14:07:19 PST"]
[Termination "Harsha_Bharathakoti won by resignation"]

1. e4 {[%clk 0:03:00.9]} 1... c5 {[%clk 0:02:57.2]} 2. c3 {[%clk 0:03:01.1]}
2... Nf6 {[%clk 0:02:56.4]} 3. e5 {[%clk 0:03:01.4]} 3... Nd5 {[%clk 0:02:57.1]}
4. d4 {[%clk 0:03:02.1]} 4... cxd4 {[%clk 0:02:57.7]} 5. Qxd4 {[%clk 0:03:02.7]}
5... e6 {[%clk 0:02:57.9]} 6. Nf3 {[%clk 0:03:02.5]} 6... Nc6 {[%clk 0:02:58.3]}
7. Qe4 {[%clk 0:03:03]} 7... f5 {[%clk 0:02:59]} 8. exf6 {[%clk 0:03:03.3]} 8...
Nxf6 {[%clk 0:02:58.9]} 9. Qh4 {[%clk 0:03:03.5]} 9... d5 {[%clk 0:02:57]} 10.
Bd3 {[%clk 0:03:02.6]} 10... e5 {[%clk 0:02:49.5]} 11. Bg6+ {[%clk 0:03:01.8]}
11... Kd7 {[%clk 0:02:23]} 12. Bf5+ {[%clk 0:02:58.8]} 12... Kc7 {[%clk
0:02:22.9]} 13. Bxc8 {[%clk 0:02:59.5]} 13... Rxc8 {[%clk 0:02:23.7]} 14. O-O
{[%clk 0:02:59.3]} 14... Kb8 {[%clk 0:02:21.9]} 15. Re1 {[%clk 0:02:58]} 15...
Bd6 {[%clk 0:02:21.7]} 16. Bg5 {[%clk 0:02:56.6]} 16... e4 {[%clk 0:02:19.2]}
17. Nfd2 {[%clk 0:02:53.1]} 17... Ne5 {[%clk 0:02:15.1]} 18. Nb3 {[%clk
0:02:44]} 18... Nd3 {[%clk 0:02:09.8]} 19. Re2 {[%clk 0:02:43.8]} 19... h6
{[%clk 0:02:07.3]} 20. Bxf6 {[%clk 0:02:43.5]} 20... gxf6 {[%clk 0:02:08.2]} 21.
Nd4 {[%clk 0:01:55]} 21... Rg8 {[%clk 0:02:00.1]} 22. g3 {[%clk 0:01:55]} 22...
Be5 {[%clk 0:01:39.9]} 23. Nf5 {[%clk 0:01:43.4]} 23... Qd7 {[%clk 0:01:14.9]}
24. Ne3 {[%clk 0:01:41.5]} 24... f5 {[%clk 0:01:10.6]} 25. Na3 {[%clk 0:01:29]}
25... f4 {[%clk 0:01:07.7]} 26. Nf1 {[%clk 0:01:29.4]} 26... Rg4 {[%clk
0:00:47.6]} 27. Qh5 {[%clk 0:01:26.5]} 27... f3 {[%clk 0:00:42]} 28. Rd2 {[%clk
0:01:22.6]} 28... Rg5 {[%clk 0:00:22.7]} 29. Qxh6 {[%clk 0:01:20.5]} 29... Bf4
{[%clk 0:00:23.4]} 30. Qf6 {[%clk 0:01:02.5]} 30... Bxd2 {[%clk 0:00:23.6]} 31.
Nxd2 {[%clk 0:01:02.2]} 31... Qh3 {[%clk 0:00:24.2]} 32. Nxf3 {[%clk 0:00:59.6]}
32... exf3 {[%clk 0:00:25.1]} 33. Qxf3 {[%clk 0:00:59.7]} 33... Rh5 {[%clk
0:00:21]} 34. Qg2 {[%clk 0:00:43]} 34... Rch8 {[%clk 0:00:18.3]} 35. Rd1 {[%clk
0:00:24.8]} 35... Qxg2+ {[%clk 0:00:16.5]} 36. Kxg2 {[%clk 0:00:25.7]} 36...
Rxh2+ {[%clk 0:00:17.2]} 37. Kf3 {[%clk 0:00:26.4]} 37... Rf8+ {[%clk
0:00:14.1]} 38. Ke3 {[%clk 0:00:26.7]} 38... Nxf2 {[%clk 0:00:14.4]} 39. Rxd5
{[%clk 0:00:25.8]} 39... Ng4+ {[%clk 0:00:14.8]} 40. Kd3 {[%clk 0:00:26.2]}
40... Rxb2 {[%clk 0:00:15.2]} 41. Nc4 {[%clk 0:00:25.7]} 41... Rxa2 {[%clk
0:00:13.5]} 42. Rg5 {[%clk 0:00:25.9]} 42... Nf2+ {[%clk 0:00:13.3]} 43. Kd4
{[%clk 0:00:25.9]} 43... Rd8+ {[%clk 0:00:14]} 44. Ke3 {[%clk 0:00:24.8]} 44...
Nd1+ {[%clk 0:00:14.7]} 45. Ke4 {[%clk 0:00:24.6]} 45... Nxc3+ {[%clk
0:00:15.6]} 46. Ke5 {[%clk 0:00:24.7]} 46... Re2+ {[%clk 0:00:15.8]} 47. Kf6
{[%clk 0:00:24.8]} 47... Ne4+ {[%clk 0:00:16.2]} 0-1

[Event "Late-Titled-Tuesday-Blitz-February-06-2024"]
[Site "Chess.com"]
[Date "2024.02.06"]
[Round "1"]
[White "ProfessorChess101"]
[Black "19912131712118"]
[Result "1-0"]
[WhiteElo "2818"]
[BlackElo "2437"]
[TimeControl "180+1"]
[EndTime "14:07:20 PST"]
[Termination "ProfessorChess101 won on time"]

1. d4 {[%clk 0:03:00.9]} 1... d5 {[%clk 0:02:59.5]} 2. c4 {[%clk 0:02:59.9]}
2... dxc4 {[%clk 0:03:00.4]} 3. Nf3 {[%clk 0:02:58.8]} 3... Nf6 {[%clk
0:02:59.7]} 4. e3 {[%clk 0:02:58.6]} 4... e6 {[%clk 0:03:00.2]} 5. Bxc4 {[%clk
0:02:58.3]} 5... c5 {[%clk 0:03:00.9]} 6. O-O {[%clk 0:02:58.1]} 6... a6 {[%clk
0:03:00.9]} 7. b3 {[%clk 0:02:54.9]} 7... Be7 {[%clk 0:02:57.6]} 8. Bb2 {[%clk
0:02:54.4]} 8... O-O {[%clk 0:02:56.7]} 9. Nbd2 {[%clk 0:02:54.1]} 9... Nc6
{[%clk 0:02:53.5]} 10. Rc1 {[%clk 0:02:49.8]} 10... cxd4 {[%clk 0:02:43.6]} 11.
Nxd4 {[%clk 0:02:48.7]} 11... Nxd4 {[%clk 0:02:43.2]} 12. Bxd4 {[%clk
0:02:49.6]} 12... b5 {[%clk 0:02:42.4]} 13. Be2 {[%clk 0:02:48.8]} 13... Bb7
{[%clk 0:02:42.5]} 14. Bf3 {[%clk 0:02:47.2]} 14... Nd5 {[%clk 0:02:39.1]} 15.
Ne4 {[%clk 0:02:44.3]} 15... Rc8 {[%clk 0:02:35.9]} 16. Nc5 {[%clk 0:02:25.9]}
16... Bxc5 {[%clk 0:02:18.1]} 17. Bxc5 {[%clk 0:02:26.8]} 17... Re8 {[%clk
0:02:17.8]} 18. Qd2 {[%clk 0:02:18.6]} 18... Qg5 {[%clk 0:01:59.8]} 19. Ba3
{[%clk 0:02:04.8]} 19... Red8 {[%clk 0:01:53.6]} 20. Rxc8 {[%clk 0:02:03]} 20...
Rxc8 {[%clk 0:01:51.5]} 21. Qd4 {[%clk 0:01:44]} 21... Qd8 {[%clk 0:00:56]} 22.
Rd1 {[%clk 0:01:27.9]} 22... Qc7 {[%clk 0:00:45.4]} 23. Bb2 {[%clk 0:01:19.8]}
23... f6 {[%clk 0:00:32.9]} 24. h4 {[%clk 0:01:19]} 24... Ne7 {[%clk 0:00:21.2]}
25. Rc1 {[%clk 0:00:54.4]} 25... Nc6 {[%clk 0:00:06]} 26. Qg4 {[%clk 0:00:46]}
26... Qe7 {[%clk 0:00:04.4]} 27. Qg3 {[%clk 0:00:38]} 27... Kf7 {[%clk
0:00:03.3]} 28. h5 {[%clk 0:00:36.9]} 28... g6 {[%clk 0:00:03.6]} 29. Be4 {[%clk
0:00:28.1]} 29... f5 {[%clk 0:00:03.1]} 30. Bxc6 {[%clk 0:00:26.1]} 30... Rxc6
{[%clk 0:00:02.7]} 31. Rxc6 {[%clk 0:00:23.7]} 31... Bxc6 {[%clk 0:00:03.6]} 32.
Qe5 {[%clk 0:00:24]} 32... Qd7 {[%clk 0:00:03.9]} 33. Qg7+ {[%clk 0:00:22.1]}
33... Ke8 {[%clk 0:00:04.3]} 34. Qg8+ {[%clk 0:00:18.5]} 34... Ke7 {[%clk
0:00:04.7]} 35. Ba3+ {[%clk 0:00:18]} 35... Kf6 {[%clk 0:00:04.7]} 36. Qf8+
{[%clk 0:00:15.3]} 36... Kg5 {[%clk 0:00:05]} 37. Be7+ {[%clk 0:00:14.4]} 37...
Kxh5 {[%clk 0:00:05.3]} 38. Qf6 {[%clk 0:00:14]} 38... Qd1+ {[%clk 0:00:01.9]}
39. Kh2 {[%clk 0:00:14.7]} 1-0

[Event "Late-Titled-Tuesday-Blitz-February-06-2024"]
[Site "Chess.com"]
[Date "2024.02.06"]
[Round "1"]
[White "rasmussvane"]
[Black "Slovak_fighter2000"]
[Result "1-0"]
[WhiteElo "2974"]
[BlackElo "2512"]
[TimeControl "180+1"]
[EndTime "14:07:21 PST"]
[Termination "rasmussvane won on time"]

1. Nf3 {[%clk 0:02:58.5]} 1... Nf6 {[%clk 0:03:00.2]} 2. g3 {[%clk 0:02:57.7]}
2... d5 {[%clk 0:03:00.4]} 3. Bg2 {[%clk 0:02:55.6]} 3... Nbd7 {[%clk
0:03:00.8]} 4. d4 {[%clk 0:02:55.4]} 4... Nb6 {[%clk 0:03:00.8]} 5. Nc3 {[%clk
0:02:46.5]} 5... Bf5 {[%clk 0:02:58.9]} 6. Nh4 {[%clk 0:02:45.2]} 6... e6 {[%clk
0:02:59.2]} 7. Nxf5 {[%clk 0:02:43.1]} 7... exf5 {[%clk 0:03:00.1]} 8. Qd3
{[%clk 0:02:30.5]} 8... g6 {[%clk 0:03:00]} 9. Bg5 {[%clk 0:02:27.9]} 9... Bg7
{[%clk 0:02:46.9]} 10. O-O {[%clk 0:02:26.8]} 10... O-O {[%clk 0:02:37.9]} 11.
a4 {[%clk 0:02:23.2]} 11... a5 {[%clk 0:02:29.1]} 12. e3 {[%clk 0:02:22.9]}
12... c6 {[%clk 0:02:28.8]} 13. Ne2 {[%clk 0:02:22.6]} 13... Nc4 {[%clk
0:02:02.4]} 14. b3 {[%clk 0:02:18.8]} 14... Nd6 {[%clk 0:02:02.9]} 15. c4 {[%clk
0:02:06.9]} 15... Nde4 {[%clk 0:01:57.8]} 16. Bxf6 {[%clk 0:02:06.8]} 16... Nxf6
{[%clk 0:01:49.6]} 17. Rfc1 {[%clk 0:02:04]} 17... Qd6 {[%clk 0:01:40.5]} 18.
Nf4 {[%clk 0:02:03.7]} 18... dxc4 {[%clk 0:01:27.3]} 19. bxc4 {[%clk 0:01:59.6]}
19... c5 {[%clk 0:01:17]} 20. Rab1 {[%clk 0:01:50.4]} 20... Rad8 {[%clk
0:01:13]} 21. Nd5 {[%clk 0:01:27.6]} 21... Nxd5 {[%clk 0:01:10.4]} 22. Bxd5
{[%clk 0:01:28.5]} 22... b6 {[%clk 0:01:06.9]} 23. Rb5 {[%clk 0:01:27.5]} 23...
cxd4 {[%clk 0:00:55.4]} 24. exd4 {[%clk 0:01:28.4]} 24... Qf6 {[%clk 0:00:55.3]}
25. Rd1 {[%clk 0:01:28.7]} 25... Rd6 {[%clk 0:00:51.2]} 26. Rb2 {[%clk
0:01:06.9]} 26... Rfd8 {[%clk 0:00:51.5]} 27. Re2 {[%clk 0:01:07.1]} 27... h5
{[%clk 0:00:49.8]} 28. Kg2 {[%clk 0:01:00.2]} 28... Kh7 {[%clk 0:00:47.9]} 29.
Qf3 {[%clk 0:01:00]} 29... R6d7 {[%clk 0:00:40.4]} 30. Qf4 {[%clk 0:00:52.9]}
30... Qd6 {[%clk 0:00:36]} 31. Qf3 {[%clk 0:00:46.3]} 31... Qb4 {[%clk
0:00:33.7]} 32. Ra2 {[%clk 0:00:40.9]} 32... Qd6 {[%clk 0:00:31.2]} 33. Rb2
{[%clk 0:00:38]} 33... Qf6 {[%clk 0:00:29.3]} 34. h3 {[%clk 0:00:37.6]} 34...
Rd6 {[%clk 0:00:29.2]} 35. Re2 {[%clk 0:00:37.6]} 35... Qg5 {[%clk 0:00:27.1]}
36. Bxf7 {[%clk 0:00:30.3]} 36... Rxd4 {[%clk 0:00:22.9]} 37. Rxd4 {[%clk
0:00:26.6]} 37... Bxd4 {[%clk 0:00:11.9]} 38. Re6 {[%clk 0:00:26.2]} 38... Bf6
{[%clk 0:00:08.9]} 39. h4 {[%clk 0:00:23.8]} 39... Qg4 {[%clk 0:00:04.5]} 40.
Rxf6 {[%clk 0:00:20.2]} 40... Rd2 {[%clk 0:00:01.5]} 41. Bxg6+ {[%clk
0:00:18.9]} 1-0

[Event "Late-Titled-Tuesday-Blitz-February-06-2024"]
[Site "Chess.com"]
[Date "2024.02.06"]
[Round "1"]
[White "ameetghasi100"]
[Black "elchacal664"]
[Result "1-0"]
[WhiteElo "2744"]
[BlackElo "2402"]
[TimeControl "180+1"]
[EndTime "14:07:24 PST"]
[Termination "ameetghasi100 won by resignation"]

1. c4 {[%clk 0:03:00.9]} 1... d6 {[%clk 0:02:56.6]} 2. d4 {[%clk 0:02:59.6]}
2... e5 {[%clk 0:02:56]} 3. Nc3 {[%clk 0:03:00.5]} 3... exd4 {[%clk 0:02:54.9]}
4. Qxd4 {[%clk 0:03:01.4]} 4... Nf6 {[%clk 0:02:53.8]} 5. Qd2 {[%clk 0:03:02.3]}
5... g6 {[%clk 0:02:53]} 6. g3 {[%clk 0:03:01.5]} 6... Bg7 {[%clk 0:02:53.3]} 7.
Nh3 {[%clk 0:03:01.7]} 7... O-O {[%clk 0:02:53.3]} 8. Nf4 {[%clk 0:03:02.1]}
8... Nc6 {[%clk 0:02:50.6]} 9. Bg2 {[%clk 0:03:02.3]} 9... Re8 {[%clk 0:02:48]}
10. O-O {[%clk 0:03:02.5]} 10... Ng4 {[%clk 0:02:44.6]} 11. b3 {[%clk
0:03:01.4]} 11... h5 {[%clk 0:02:37.4]} 12. Bb2 {[%clk 0:02:59.9]} 12... h4
{[%clk 0:02:36.6]} 13. Ncd5 {[%clk 0:02:59.2]} 13... hxg3 {[%clk 0:02:32.7]} 14.
hxg3 {[%clk 0:02:58.1]} 14... Nce5 {[%clk 0:02:22.7]} 15. Rad1 {[%clk
0:02:45.3]} 15... Bd7 {[%clk 0:01:53.1]} 16. f3 {[%clk 0:02:32.4]} 16... Nh6
{[%clk 0:01:45.1]} 17. e4 {[%clk 0:02:31.7]} 17... f5 {[%clk 0:01:28.7]} 18.
Bxe5 {[%clk 0:02:22.5]} 18... dxe5 {[%clk 0:01:23.7]} 19. Nxg6 {[%clk
0:02:22.1]} 19... f4 {[%clk 0:01:17.9]} 20. gxf4 {[%clk 0:02:16.3]} 20... exf4
{[%clk 0:01:13.2]} 21. Ndxf4 {[%clk 0:02:11.9]} 21... Bc6 {[%clk 0:01:12.2]} 22.
Qxd8 {[%clk 0:01:56.9]} 22... Raxd8 {[%clk 0:01:13.1]} 23. Ne7+ {[%clk
0:01:38.4]} 23... Kf7 {[%clk 0:01:12.5]} 24. Nxc6 {[%clk 0:01:30.3]} 24... bxc6
{[%clk 0:01:13.4]} 25. Ne2 {[%clk 0:01:30.6]} 25... Ng8 {[%clk 0:01:05.1]} 26.
f4 {[%clk 0:01:28.4]} 26... Bf8 {[%clk 0:01:04.7]} 27. Kf2 {[%clk 0:01:14.8]}
27... Bc5+ {[%clk 0:01:05.1]} 28. Kf3 {[%clk 0:01:14.9]} 28... Ne7 {[%clk
0:00:58.3]} 29. Bh3 {[%clk 0:00:56.6]} 29... Ng6 {[%clk 0:00:55]} 30. e5 {[%clk
0:00:55.6]} 30... Kg7 {[%clk 0:00:52]} 31. Ng3 {[%clk 0:00:38.2]} 31... Rf8
{[%clk 0:00:32.6]} 32. Nf5+ {[%clk 0:00:34.4]} 32... Kh7 {[%clk 0:00:31.2]} 33.
Ke4 {[%clk 0:00:33.3]} 33... Rde8 {[%clk 0:00:22.2]} 34. Bg4 {[%clk 0:00:32.1]}
34... Kg8 {[%clk 0:00:20.4]} 35. Bh5 {[%clk 0:00:29.9]} 35... Re6 {[%clk
0:00:19.1]} 36. Rd7 {[%clk 0:00:26.8]} 36... Ne7 {[%clk 0:00:14.8]} 37. Bg4
{[%clk 0:00:22.2]} 37... Nxf5 {[%clk 0:00:12.8]} 38. Bxf5 {[%clk 0:00:23.1]}
38... Re7 {[%clk 0:00:13]} 39. Rxe7 {[%clk 0:00:22.1]} 39... Bxe7 {[%clk
0:00:13.9]} 40. Rg1+ {[%clk 0:00:21.9]} 40... Kh8 {[%clk 0:00:13.7]} 41. Rg6
{[%clk 0:00:21.7]} 41... c5 {[%clk 0:00:11.9]} 42. Rc6 {[%clk 0:00:20.3]} 1-0

[Event "Late-Titled-Tuesday-Blitz-February-06-2024"]
[Site "Chess.com"]
[Date "2024.02.06"]
[Round "1"]
[White "GiorgianBarbosa"]
[Black "KaydenTroffChess"]
[Result "0-1"]
[WhiteElo "2458"]
[BlackElo "2853"]
[TimeControl "180+1"]
[EndTime "14:07:29 PST"]
[Termination "KaydenTroffChess won by checkmate"]

1. c4 {[%clk 0:03:00]} 1... Nf6 {[%clk 0:02:59.3]} 2. g3 {[%clk 0:03:00.6]} 2...
g6 {[%clk 0:02:52.8]} 3. Bg2 {[%clk 0:03:01.5]} 3... Bg7 {[%clk 0:02:53]} 4. e3
{[%clk 0:03:01.2]} 4... O-O {[%clk 0:02:50.2]} 5. Ne2 {[%clk 0:03:02.1]} 5... d5
{[%clk 0:02:50.2]} 6. O-O {[%clk 0:03:03]} 6... dxc4 {[%clk 0:02:48.2]} 7. Na3
{[%clk 0:03:02.8]} 7... c6 {[%clk 0:02:33.2]} 8. Nxc4 {[%clk 0:03:01.2]} 8...
Bf5 {[%clk 0:02:32.1]} 9. d4 {[%clk 0:02:54.5]} 9... Nbd7 {[%clk 0:02:29.9]} 10.
b3 {[%clk 0:02:51.4]} 10... Nb6 {[%clk 0:02:29.2]} 11. a4 {[%clk 0:02:45.3]}
11... Be6 {[%clk 0:02:27]} 12. Qc2 {[%clk 0:02:41.1]} 12... Nfd5 {[%clk
0:02:04.2]} 13. a5 {[%clk 0:02:36.9]} 13... Nb4 {[%clk 0:02:01.9]} 14. Qc3
{[%clk 0:02:22.9]} 14... N6d5 {[%clk 0:01:55.3]} 15. Qd2 {[%clk 0:02:22]} 15...
Na6 {[%clk 0:01:50.1]} 16. Ba3 {[%clk 0:02:18.4]} 16... Ndc7 {[%clk 0:01:43.9]}
17. Nf4 {[%clk 0:02:14.5]} 17... Bf5 {[%clk 0:01:36.6]} 18. e4 {[%clk
0:02:04.6]} 18... Bc8 {[%clk 0:01:36.2]} 19. Rad1 {[%clk 0:01:59.6]} 19... Nb5
{[%clk 0:01:33.8]} 20. Bb2 {[%clk 0:01:58]} 20... Bg4 {[%clk 0:01:09.5]} 21. Ne2
{[%clk 0:01:48.5]} 21... Bxe2 {[%clk 0:01:01.5]} 22. Qxe2 {[%clk 0:01:48.7]}
22... Nxd4 {[%clk 0:01:01.2]} 23. Bxd4 {[%clk 0:01:38]} 23... Bxd4 {[%clk
0:01:00.7]} 24. e5 {[%clk 0:01:38.5]} 24... Rb8 {[%clk 0:00:50.9]} 25. h4 {[%clk
0:01:15.7]} 25... c5 {[%clk 0:00:44.1]} 26. h5 {[%clk 0:01:13.3]} 26... b5
{[%clk 0:00:40.8]} 27. axb6 {[%clk 0:01:10.9]} 27... axb6 {[%clk 0:00:40.6]} 28.
e6 {[%clk 0:01:03.5]} 28... f6 {[%clk 0:00:37.6]} 29. hxg6 {[%clk 0:00:57.9]}
29... hxg6 {[%clk 0:00:37.6]} 30. Ne5 {[%clk 0:00:23.7]} 30... fxe5 {[%clk
0:00:33.5]} 31. Qxa6 {[%clk 0:00:23.1]} 31... Qd6 {[%clk 0:00:31.3]} 32. Bh3
{[%clk 0:00:20.7]} 32... Rf3 {[%clk 0:00:26.8]} 33. Qe2 {[%clk 0:00:19.3]} 33...
Rbf8 {[%clk 0:00:24.1]} 34. Qe4 {[%clk 0:00:12.8]} 34... Rxg3+ {[%clk
0:00:22.6]} 35. Kh2 {[%clk 0:00:12.2]} 35... Rg5 {[%clk 0:00:21.8]} 36. f3
{[%clk 0:00:08.3]} 36... Rf4 {[%clk 0:00:21.5]} 37. Qc2 {[%clk 0:00:06.9]} 37...
e4 {[%clk 0:00:21.1]} 38. Kh1 {[%clk 0:00:04.1]} 38... Rh4 {[%clk 0:00:20.7]}
39. Qh2 {[%clk 0:00:04]} 39... Qg3 {[%clk 0:00:14.7]} 40. fxe4 {[%clk
0:00:03.5]} 40... Qxh3 {[%clk 0:00:14.1]} 41. Rg1 {[%clk 0:00:02.3]} 41... Qxh2#
{[%clk 0:00:14.1]} 0-1

[Event "Late-Titled-Tuesday-Blitz-February-06-2024"]
[Site "Chess.com"]
[Date "2024.02.06"]
[Round "1"]
[White "neri_gaite"]
[Black "slorovel"]
[Result "0-1"]
[WhiteElo "2031"]
[BlackElo "2551"]
[TimeControl "180+1"]
[EndTime "14:07:30 PST"]
[Termination "slorovel won by checkmate"]

1. d4 {[%clk 0:02:58.8]} 1... Nf6 {[%clk 0:02:58.4]} 2. c4 {[%clk 0:02:58.8]}
2... g6 {[%clk 0:02:59]} 3. Nc3 {[%clk 0:02:58.5]} 3... Bg7 {[%clk 0:02:59.3]}
4. e4 {[%clk 0:02:58.3]} 4... d6 {[%clk 0:02:59.8]} 5. Be2 {[%clk 0:02:58.5]}
5... O-O {[%clk 0:03:00.3]} 6. h4 {[%clk 0:02:58.9]} 6... c5 {[%clk 0:02:58.2]}
7. d5 {[%clk 0:02:58.8]} 7... e6 {[%clk 0:02:58.5]} 8. h5 {[%clk 0:02:58.1]}
8... exd5 {[%clk 0:02:57.1]} 9. exd5 {[%clk 0:02:59]} 9... Re8 {[%clk 0:02:53]}
10. h6 {[%clk 0:02:57.3]} 10... Bh8 {[%clk 0:02:52.8]} 11. Kf1 {[%clk
0:02:58.2]} 11... Nbd7 {[%clk 0:02:51.7]} 12. Bf4 {[%clk 0:02:58]} 12... Ne5
{[%clk 0:02:50.1]} 13. Nf3 {[%clk 0:02:56.5]} 13... a6 {[%clk 0:02:49]} 14. Nxe5
{[%clk 0:02:52.5]} 14... dxe5 {[%clk 0:02:49.1]} 15. Be3 {[%clk 0:02:53.4]}
15... Nd7 {[%clk 0:02:43.2]} 16. a4 {[%clk 0:02:51.9]} 16... f5 {[%clk 0:02:43]}
17. Rc1 {[%clk 0:02:46.6]} 17... e4 {[%clk 0:02:36.1]} 18. d6 {[%clk 0:02:41.3]}
18... Nf6 {[%clk 0:02:18.1]} 19. Bxc5 {[%clk 0:02:37.3]} 19... Be6 {[%clk
0:02:18]} 20. Nd5 {[%clk 0:02:29.8]} 20... Nxd5 {[%clk 0:02:16.7]} 21. cxd5
{[%clk 0:02:30.7]} 21... Bd7 {[%clk 0:02:16.8]} 22. Bd4 {[%clk 0:02:23.5]} 22...
Rf8 {[%clk 0:02:05.8]} 23. Bxh8 {[%clk 0:02:15.4]} 23... Kxh8 {[%clk 0:02:06.7]}
24. Qd4+ {[%clk 0:02:15.9]} 24... Qf6 {[%clk 0:02:06.4]} 25. Qxf6+ {[%clk
0:02:01.2]} 25... Rxf6 {[%clk 0:02:07.3]} 26. Rc7 {[%clk 0:02:01.4]} 26... Rxd6
{[%clk 0:02:07.1]} 27. Bc4 {[%clk 0:01:56.3]} 27... b5 {[%clk 0:02:04]} 28. axb5
{[%clk 0:01:55.6]} 28... axb5 {[%clk 0:02:04.9]} 29. Bb3 {[%clk 0:01:50.2]}
29... Ra1+ {[%clk 0:02:03.9]} 30. Ke2 {[%clk 0:01:50.3]} 30... Rxh1 {[%clk
0:02:03.6]} 31. Rb7 {[%clk 0:01:50.4]} 31... Kg8 {[%clk 0:02:02.8]} 32. Ke3
{[%clk 0:01:47.4]} 32... Rb1 {[%clk 0:01:56.4]} 33. Kf4 {[%clk 0:01:45.2]} 33...
Rxb2 {[%clk 0:01:55.8]} 34. Ke5 {[%clk 0:01:46.1]} 34... Ra6 {[%clk 0:01:47.7]}
35. d6+ {[%clk 0:01:26.3]} 35... Rxb3 {[%clk 0:01:46.4]} 36. Rxd7 {[%clk
0:01:27.2]} 36... Rd3 {[%clk 0:01:37.9]} 37. Rg7+ {[%clk 0:01:24.2]} 37... Kf8
{[%clk 0:01:34.1]} 38. d7 {[%clk 0:01:19.5]} 38... Rad6 {[%clk 0:01:24.7]} 39.
Rxh7 {[%clk 0:01:12.4]} 39... Rxd7 {[%clk 0:01:24.5]} 40. Rh8+ {[%clk
0:01:12.7]} 40... Kf7 {[%clk 0:01:23.1]} 41. Rb8 {[%clk 0:01:05.5]} 41... Rd8
{[%clk 0:01:22]} 42. Rb7+ {[%clk 0:01:02.4]} 42... R3d7 {[%clk 0:01:22.3]} 43.
Rxb5 {[%clk 0:01:02]} 43... Kg8 {[%clk 0:01:21.1]} 44. Kf6 {[%clk 0:00:59.3]}
44... Kh7 {[%clk 0:01:21.3]} 45. Kg5 {[%clk 0:00:59.4]} 45... Rf8 {[%clk
0:01:20.2]} 46. Rb6 {[%clk 0:00:57.3]} 46... Rg8 {[%clk 0:01:20.1]} 47. Re6
{[%clk 0:00:49.7]} 47... Rf7 {[%clk 0:01:20]} 48. Rd6 {[%clk 0:00:46.9]} 48...
f4 {[%clk 0:01:15.2]} 49. Re6 {[%clk 0:00:46.8]} 49... Rf5+ {[%clk 0:01:14.8]}
50. Kg4 {[%clk 0:00:45]} 50... f3 {[%clk 0:01:11.3]} 51. gxf3 {[%clk 0:00:41.8]}
51... exf3 {[%clk 0:01:12.2]} 52. Kh4 {[%clk 0:00:32.3]} 52... Kxh6 {[%clk
0:01:10.6]} 53. Kg4 {[%clk 0:00:31.9]} 53... Rgf8 {[%clk 0:01:09.7]} 54. Re4
{[%clk 0:00:28.8]} 54... Rg5+ {[%clk 0:01:07.9]} 55. Kh4 {[%clk 0:00:26.7]}
55... Rg2 {[%clk 0:01:05.7]} 56. Kh3 {[%clk 0:00:18.4]} 56... Kg5 {[%clk
0:01:05.8]} 57. Re5+ {[%clk 0:00:15.3]} 57... Kf4 {[%clk 0:01:05.9]} 58. Ra5
{[%clk 0:00:09.6]} 58... Rh8+ {[%clk 0:01:05.2]} 59. Rh5 {[%clk 0:00:08.4]}
59... Rxh5# {[%clk 0:01:05.3]} 0-1

[Event "Late-Titled-Tuesday-Blitz-February-06-2024"]
[Site "Chess.com"]
[Date "2024.02.06"]
[Round "1"]
[White "sakkikuska"]
[Black "BozeKat"]
[Result "1-0"]
[WhiteElo "2543"]
[BlackElo "1995"]
[TimeControl "180+1"]
[EndTime "14:07:30 PST"]
[Termination "sakkikuska won by resignation"]

1. e4 {[%clk 0:03:00]} 1... c5 {[%clk 0:02:59.2]} 2. Nf3 {[%clk 0:02:57.4]} 2...
a6 {[%clk 0:02:59.6]} 3. c4 {[%clk 0:02:56.7]} 3... g6 {[%clk 0:02:58.6]} 4. Nc3
{[%clk 0:02:55.8]} 4... Bg7 {[%clk 0:02:58.8]} 5. d4 {[%clk 0:02:56]} 5... cxd4
{[%clk 0:02:58.3]} 6. Nxd4 {[%clk 0:02:56.2]} 6... e6 {[%clk 0:02:57.3]} 7. Be3
{[%clk 0:02:53.8]} 7... Nc6 {[%clk 0:02:53.4]} 8. Be2 {[%clk 0:02:47.3]} 8...
Nge7 {[%clk 0:02:51.8]} 9. O-O {[%clk 0:02:47]} 9... O-O {[%clk 0:02:51]} 10.
Rc1 {[%clk 0:02:43.7]} 10... f5 {[%clk 0:02:45.8]} 11. exf5 {[%clk 0:02:40.3]}
11... gxf5 {[%clk 0:02:38.6]} 12. Nxc6 {[%clk 0:02:20.9]} 12... Nxc6 {[%clk
0:02:36.2]} 13. Bc5 {[%clk 0:02:18.7]} 13... Rf6 {[%clk 0:02:33.4]} 14. Bf3
{[%clk 0:01:49.8]} 14... Rg6 {[%clk 0:02:24.5]} 15. Bxc6 {[%clk 0:01:41.9]}
15... bxc6 {[%clk 0:02:23]} 16. b3 {[%clk 0:01:18.8]} 16... Qg5 {[%clk
0:02:15.9]} 17. Qf3 {[%clk 0:01:15.9]} 17... e5 {[%clk 0:02:11.4]} 18. Be3
{[%clk 0:00:49.4]} 18... Qf6 {[%clk 0:02:07.3]} 19. Rfd1 {[%clk 0:00:38.7]}
19... Qe6 {[%clk 0:01:39.8]} 20. c5 {[%clk 0:00:21.5]} 20... a5 {[%clk
0:01:35.8]} 21. Rd6 {[%clk 0:00:20.9]} 21... Qf7 {[%clk 0:01:33.6]} 22. Rcd1
{[%clk 0:00:16.2]} 22... Rxd6 {[%clk 0:01:27.2]} 23. Rxd6 {[%clk 0:00:13.6]}
23... Ba6 {[%clk 0:01:27.6]} 24. h4 {[%clk 0:00:08.6]} 24... Rf8 {[%clk
0:01:20.6]} 25. h5 {[%clk 0:00:09]} 25... h6 {[%clk 0:01:20.6]} 26. Bxh6 {[%clk
0:00:06.1]} 26... Kh7 {[%clk 0:01:11.9]} 27. Bxg7 {[%clk 0:00:06.6]} 27... Qxg7
{[%clk 0:01:12.8]} 28. Rg6 {[%clk 0:00:07]} 28... Qxg6 {[%clk 0:01:02.8]} 29.
hxg6+ {[%clk 0:00:07.3]} 29... Kxg6 {[%clk 0:01:03.7]} 30. Qg3+ {[%clk 0:00:08]}
30... Kf6 {[%clk 0:01:02.8]} 31. Qh4+ {[%clk 0:00:08.6]} 31... Ke6 {[%clk
0:01:02.4]} 32. Qh6+ {[%clk 0:00:09.2]} 32... Rf6 {[%clk 0:01:03]} 33. Qh8
{[%clk 0:00:09.5]} 33... Rf7 {[%clk 0:00:55.2]} 34. Qe8+ {[%clk 0:00:09.7]}
34... Re7 {[%clk 0:00:55.5]} 35. Qg8+ {[%clk 0:00:09.7]} 35... Kf6 {[%clk
0:00:55.1]} 36. Qf8+ {[%clk 0:00:09.8]} 36... Rf7 {[%clk 0:00:55]} 37. Qd6+
{[%clk 0:00:09.9]} 37... Kg7 {[%clk 0:00:55.2]} 38. Qxe5+ {[%clk 0:00:10.4]}
38... Kg6 {[%clk 0:00:54.6]} 39. Qg3+ {[%clk 0:00:10.6]} 39... Kf6 {[%clk
0:00:54.7]} 40. Qd6+ {[%clk 0:00:10.8]} 40... Kg7 {[%clk 0:00:54.3]} 41. Qc7
{[%clk 0:00:11.1]} 41... Bd3 {[%clk 0:00:50.2]} 42. Qxa5 {[%clk 0:00:09.6]}
42... Be4 {[%clk 0:00:48.7]} 43. Nxe4 {[%clk 0:00:09.5]} 43... fxe4 {[%clk
0:00:48.7]} 44. Qb4 {[%clk 0:00:10.3]} 44... Rf4 {[%clk 0:00:46.7]} 45. Qd4+
{[%clk 0:00:10.7]} 45... Kg6 {[%clk 0:00:45.8]} 46. Qd6+ {[%clk 0:00:11.1]}
46... Kf5 {[%clk 0:00:45.9]} 47. Qxd7+ {[%clk 0:00:11.3]} 47... Ke5 {[%clk
0:00:45.4]} 48. Qd6+ {[%clk 0:00:11.3]} 48... Kf5 {[%clk 0:00:45.6]} 49. Qxc6
{[%clk 0:00:11.7]} 49... e3 {[%clk 0:00:44.2]} 50. Qd5+ {[%clk 0:00:11.9]} 50...
Kg4 {[%clk 0:00:44.1]} 51. Qe6+ {[%clk 0:00:12]} 51... Kg5 {[%clk 0:00:43.7]}
52. Qxe3 {[%clk 0:00:12.1]} 52... Kg4 {[%clk 0:00:43.6]} 53. Qxf4+ {[%clk
0:00:12.5]} 53... Kxf4 {[%clk 0:00:43.8]} 54. c6 {[%clk 0:00:13.4]} 1-0